bitfinex/quotes_ETHUSD_20240702
["timestamp","ask_amount","ask_price","bid_price","bid_amount"]
[1719915236032,0.824,3448.6,3448.3,3.00176674]
[1719915236237,0.824,3448.6,3448.3,2.3859]
[1719915239460,0.824,3448.4,3448.1,2.3332]
[1719915240966,1.15324604,3448.3,3448.1,2.3332]
[1719915241141,0.824,3448.4,3447.8,2.3859]
[1719915241350,1.15336174,3448.3,3447.9,0.528632]
[1719915241665,0.824,3448.4,3447.9,0.528632]
[1719915241867,1.15336407,3448.3,3447.9,0.528632]
[1719915242167,0.824,3448.4,3447.9,0.528632]
[1719915242369,1.1533643,3448.3,3447.9,0.528632]
[1719915242544,0.824,3448.4,3447.9,0.528632]
[1719915242743,1.15335917,3448.3,3447.9,0.528632]
[1719915242963,0.824,3448.4,3447.9,0.528632]
[1719915243264,1.15337677,3448.3,3447.8,2.3859]
[1719915243466,0.824,3448.4,3447.8,2.3859]
[1719915243643,1.15337059,3448.3,3447.9,0.06679127]
[1719915243844,0.824,3448.4,3447.9,0.06679127]
[1719915244039,1.15337105,3448.3,3447.9,0.06679127]
[1719915244266,0.824,3448.4,3447.9,0.06679127]
[1719915244467,1.15336828,3448.3,3447.9,0.06679127]
[1719915244771,0.824,3448.4,3447.9,0.06679127]
[1719915244934,1.15337109,3448.3,3447.9,0.06679127]
[1719915245266,0.824,3448.4,3447.9,0.06679127]
[1719915245470,1.15337061,3448.3,3447.9,0.06679127]
[1719915245662,0.824,3448.4,3447.9,0.06679127]
[1719915245870,1.15337065,3448.3,3447.9,0.06679127]
[1719915246053,0.824,3448.4,3447.9,0.06679127]
[1719915246256,1.15337074,3448.3,3447.9,0.06679127]
[1719915246563,0.824,3448.4,3447.9,0.6021074]
[1719915246769,1.15336765,3448.3,3447.9,0.6021074]
[1719915246937,0.824,3448.4,3447.9,0.6021074]
[1719915247140,1.15336767,3448.3,3447.9,0.6021074]
[1719915247336,0.824,3448.4,3447.9,0.6021074]
[1719915247535,1.15336748,3448.3,3447.9,0.6021074]
[1719915247736,0.824,3448.4,3447.9,0.6021074]
[1719915247943,0.6640265,3448.3,3447.9,0.6021074]
[1719915248143,0.824,3448.4,3447.9,0.6021074]
[1719915248345,1.15336631,3448.3,3447.9,0.6021074]
[1719915248554,0.824,3448.4,3447.9,0.6021074]
[1719915248778,1.15336618,3448.3,3447.9,0.6021074]
[1719915248956,0.824,3448.4,3447.9,0.6021074]
[1719915249143,1.15336651,3448.3,3447.9,0.6021074]
[1719915249344,0.824,3448.4,3447.9,0.6021074]
[1719915249545,0.94204034,3448.3,3447.9,0.6021074]
[1719915249864,0.824,3448.4,3447.9,0.6021074]
[1719915250066,0.94204351,3448.3,3447.9,0.6021074]
[1719915250266,0.824,3448.4,3447.9,0.6021074]
[1719915250476,0.9420472,3448.3,3447.9,0.06679127]
[1719915250776,0.824,3448.0,3447.9,0.06679127]
[1719915250979,1.76606499,3448.0,3447.9,0.06679127]
[1719915251176,0.824,3448.0,3447.4,2.3528]
[1719915251383,3.01544732,3448.1,3447.9,0.0668528]
[1719915251588,3.01544732,3448.1,3447.4,2.3528]
[1719915251589,1.76609569,3448.0,3447.4,2.3528]
[1719915251767,0.824,3447.7,3447.2,5.28672]
[1719915251965,0.824,3447.7,3447.5,0.06546993]
[1719915252285,0.824,3447.7,3447.6,0.06546993]
[1719915252783,0.824,3447.7,3447.2,3.504678]
[1719915252987,0.824,3447.7,3447.6,0.06546993]
[1719915253204,0.824,3447.7,3447.2,3.504678]
[1719915253492,0.824,3447.7,3447.3,0.9306608]
[1719915253662,0.824,3447.7,3447.3,0.99613073]
[1719915258498,3.01544732,3448.1,3447.3,0.99613073]
[1719915258696,0.824,3447.9,3447.3,0.99613073]
[1719915260014,0.824,3447.9,3447.3,3.89693073]
[1719915260218,0.824,3447.8,3447.4,1.03024887]
[1719915260795,0.824,3447.8,3447.5,0.06546993]
[1719915270584,2.3035,3448.2,3447.5,0.06546993]
[1719915270906,0.824,3447.9,3447.5,0.06546993]
[1719915280622,10.3099,3448.4,3447.6,2.2802]
[1719915280623,3.01544732,3448.3,3447.6,2.2802]
[1719915280821,0.824,3447.9,3447.6,2.2802]
[1719915281023,0.824,3447.9,3447.7,0.06551189]
[1719915284904,0.824,3447.9,3447.5,3.94082068]
[1719915285105,0.824,3447.9,3447.8,0.06551189]
[1719915285452,0.824,3447.9,3447.5,3.94082068]
[1719915285752,0.824,3447.9,3447.6,0.91388507]
[1719915285922,0.824,3447.9,3447.6,0.97939416]
[1719915289247,0.824,3447.9,3447.6,0.06550909]
[1719915289749,0.824,3447.7,3447.6,0.06550909]
[1719915289937,1.76642014,3447.7,3447.6,0.06550909]
[1719915290137,0.824,3447.7,3447.4,2.2973]
[1719915290443,0.824,3447.7,3447.6,0.06332536]
[1719915290644,1.76641219,3447.7,3447.3,2.90073]
[1719915290845,0.824,3447.7,3447.6,0.06332536]
[1719915291165,1.76644978,3447.7,3447.6,0.06332536]
[1719915291447,1.76644978,3447.7,3447.1,2.90097]
[1719915291669,0.824,3447.7,3447.6,0.06322742]
[1719915291815,1.76646469,3447.7,3447.0,2.90106]
[1719915292014,0.824,3447.7,3447.6,0.06322742]
[1719915292273,1.76647788,3447.7,3447.0,2.90106]
[1719915292420,0.824,3447.7,3447.6,0.06322742]
[1719915292615,1.76644564,3447.7,3446.9,5.287]
[1719915292826,2.3617,3447.7,3447.6,0.06323862]
[1719915293030,4.12816804,3447.7,3446.9,5.287]
[1719915293226,2.3617,3447.7,3447.6,0.06323862]
[1719915293466,4.12816183,3447.7,3446.9,5.287]
[1719915293766,0.824,3447.5,3446.9,5.287]
[1719915293974,0.824,3447.5,3447.0,0.06323862]
[1719915298160,0.824,3447.3,3447.0,0.06323862]
[1719915298820,0.824,3447.3,3446.8,2.90121]
[1719915299060,0.824,3447.3,3447.1,0.06333096]
[1719915299220,0.824,3447.3,3446.8,3.729927]
[1719915299421,0.824,3447.3,3447.2,0.06333096]
[1719915299639,0.824,3447.3,3446.8,3.729927]
[1719915299845,0.824,3447.3,3447.2,0.06333096]
[1719915300014,0.824,3447.3,3446.9,0.6115827]
[1719915300217,0.824,3447.3,3447.2,0.06333096]
[1719915300524,2.4863,3447.2,3446.6,2.9014]
[1719915300752,0.824,3447.3,3446.6,2.9014]
[1719915300923,0.94219242,3447.2,3446.7,2.838095]
[1719915301268,0.824,3447.3,3446.7,2.89611559]
[1719915301553,0.9422073,3447.2,3446.7,2.89611559]
[1719915301793,0.824,3447.3,3446.7,2.89611559]
[1719915301963,0.94220685,3447.2,3446.7,2.89611559]
[1719915302147,0.824,3447.3,3446.8,0.57975156]
[1719915302850,0.824,3447.1,3446.8,0.57975156]
[1719915303051,0.824,3447.3,3446.8,0.57975156]
[1719915303676,0.824,3447.3,3446.9,0.06333096]
[1719915303851,0.824,3447.3,3446.9,0.70739077]
[1719915304050,2.4863,3447.5,3446.9,0.70739077]
[1719915304262,0.824,3447.2,3446.9,0.70739077]
[1719915306282,2.4863,3447.5,3446.9,0.70739077]
[1719915306580,0.824,3447.5,3447.0,2.353]
[1719915306787,0.94220981,3447.4,3447.1,0.30603908]
[1719915306989,0.824,3447.5,3447.1,0.36952117]
[1719915310583,0.824,3447.3,3447.1,0.06348209]
[1719915310771,0.824,3447.3,3446.7,2.3859]
[1719915311077,0.824,3447.3,3447.2,0.06347929]
[1719915311583,0.824,3447.3,3446.8,2.90118]
[1719915311779,0.824,3447.3,3447.2,0.06347929]
[1719915311949,0.824,3447.3,3446.8,2.90118]
[1719915312148,0.824,3447.3,3447.2,0.06347929]
[1719915312381,0.824,3447.3,3446.8,2.90118]
[1719915312597,5.32117,3447.6,3447.2,0.06347929]
[1719915312810,0.824,3447.3,3446.5,2.90149]
[1719915312959,0.824,3447.1,3446.5,2.90149]
[1719915313152,0.824,3447.1,3446.5,3.720383]
[1719915313658,0.824,3446.9,3446.5,0.818893]
[1719915313857,0.824,3446.9,3446.5,2.90149]
[1719915315987,0.824,3446.9,3446.4,2.3859]
[1719915315988,0.824,3446.9,3446.4,5.28745]
[1719915316864,0.824,3446.9,3446.4,2.3859]
[1719915317064,0.824,3446.9,3446.4,6.116219]
[1719915317280,0.824,3446.9,3446.4,3.214649]
[1719915318594,0.824,3446.9,3446.5,0.06347929]
[1719915319288,0.824,3446.7,3446.5,0.06347929]
[1719915319858,0.824,3446.7,3446.0,5.17715]
[1719915320058,2.4875,3446.8,3446.6,0.06354925]
[1719915320370,0.824,3446.7,3446.0,2.90185]
[1719915320570,0.824,3446.4,3445.8,2.2753]
[1719915320888,0.824,3446.4,3445.9,2.90198]
[1719915323686,0.824,3446.4,3445.9,5.80391]
[1719915324499,0.824,3446.6,3446.0,4.009821]
[1719915325167,0.824,3446.6,3446.1,2.90182]
[1719915325703,0.824,3446.6,3446.2,2.3859]
[1719915326898,0.824,3446.8,3446.2,2.3859]
[1719915333687,0.824,3446.8,3446.3,0.06176406]
[1719915334206,0.824,3446.8,3446.4,0.06176406]
[1719915334371,0.824,3446.8,3446.2,3.32146002]
[1719915334571,0.824,3446.8,3446.3,0.06176406]
[1719915334772,0.824,3446.8,3446.2,3.37948906]
[1719915334999,0.824,3446.8,3446.3,0.05970525]
[1719915335317,0.824,3446.8,3446.2,3.37948906]
[1719915335488,0.824,3446.8,3446.3,0.73892301]
[1719915335817,0.824,3446.8,3446.3,0.79862826]
[1719915345047,0.824,3446.6,3446.3,0.79862826]
[1719915353581,7.41,3447.0,3446.3,0.79862826]
[1719915353777,0.824,3446.7,3446.3,0.05970525]
[1719915354181,0.824,3446.7,3446.2,5.34561887]
[1719915354398,0.824,3446.7,3446.4,0.05973885]
[1719915354567,0.824,3446.7,3446.2,5.28759]
[1719915354780,0.824,3446.7,3446.5,0.05973885]
[1719915354969,0.824,3446.7,3446.2,5.28759]
[1719915355167,0.824,3446.7,3446.6,0.05973885]
[1719915355395,0.824,3446.7,3446.2,2.90169]
[1719915355597,2.2828,3446.8,3446.6,0.05973885]
[1719915355786,0.824,3446.7,3446.2,2.90169]
[1719915355982,0.824,3446.5,3446.2,2.90169]
[1719915356455,0.824,3446.5,3446.0,8.1896]
[1719915356686,0.824,3446.5,3446.1,2.90181]
[1719915358874,0.824,3446.7,3446.1,2.90181]
[1719915359176,0.94215179,3446.6,3446.1,2.90181]
[1719915359414,0.824,3446.7,3446.1,2.90181]
[1719915359572,0.94215227,3446.6,3446.1,2.90181]
[1719915359774,0.824,3446.7,3446.1,3.83266]
[1719915360067,0.94215306,3446.6,3446.1,3.83266]
[1719915360313,0.824,3446.7,3446.1,3.83266]
[1719915360482,0.94218013,3446.6,3446.1,3.83266]
[1719915360681,0.824,3446.7,3446.1,3.83266]
[1719915360883,0.94216553,3446.6,3446.1,3.83266]
[1719915361117,0.824,3446.7,3446.1,3.83266]
[1719915361277,0.94217094,3446.6,3446.1,3.83266]
[1719915361478,0.94217094,3446.5,3446.1,3.83266]
[1719915361774,0.824,3446.7,3446.1,3.83266]
[1719915361987,0.94217926,3446.6,3446.1,3.83266]
[1719915362180,0.94217926,3446.5,3446.1,3.83266]
[1719915362491,0.824,3446.7,3446.1,3.83266]
[1719915362687,0.9422522,3446.6,3446.1,3.83266]
[1719915362919,0.9422522,3446.5,3446.1,3.83266]
[1719915363211,0.824,3446.7,3446.2,0.621856]
[1719915363420,0.824,3446.7,3446.1,2.90181]
[1719915363421,0.94224858,3446.6,3446.1,2.90181]
[1719915363618,0.94224858,3446.5,3446.3,0.05979205]
[1719915363782,0.824,3446.7,3446.1,2.90181]
[1719915363979,0.824,3446.7,3446.2,0.05979205]
[1719915364215,0.94225448,3446.6,3446.2,0.05979205]
[1719915364393,0.94225448,3446.5,3446.2,0.05979205]
[1719915364707,3.83944732,3446.7,3446.2,0.05979205]
[1719915364908,0.94226195,3446.6,3446.2,0.05979205]
[1719915365186,0.94226195,3446.5,3446.2,1.02466654]
[1719915365524,0.94226737,3446.4,3446.2,0.96663766]
[1719915365677,3.83944732,3446.7,3446.2,0.96663766]
[1719915366003,0.94226247,3446.6,3446.2,0.96663766]
[1719915366206,0.94226247,3446.5,3446.2,0.96663766]
[1719915366379,0.824,3446.7,3446.2,0.96663766]
[1719915366584,0.94223536,3446.6,3446.2,0.96663766]
[1719915366905,0.94223536,3446.5,3446.2,1.02466654]
[1719915367094,0.824,3446.7,3446.2,0.96663766]
[1719915367293,0.824,3446.7,3446.2,1.02466654]
[1719915367489,0.824,3446.7,3446.2,0.96663766]
[1719915367490,0.94222721,3446.6,3446.2,0.96663766]
[1719915367692,0.94222721,3446.5,3446.2,0.96663766]
[1719915367905,0.824,3446.7,3446.2,0.96663766]
[1719915368105,0.94224258,3446.6,3446.2,0.96663766]
[1719915368303,0.94224258,3446.5,3446.2,0.96663766]
[1719915368503,0.824,3446.7,3446.2,0.96663766]
[1719915368704,0.94227024,3446.6,3446.2,0.05979205]
[1719915368906,0.94227024,3446.5,3446.2,0.05979205]
[1719915369102,0.824,3446.7,3446.2,0.05979205]
[1719915369306,0.824,3446.5,3446.2,0.05979205]
[1719915370295,0.824,3446.3,3446.2,0.05979205]
[1719915370498,0.824,3446.3,3446.0,2.3859]
[1719915370699,2.4513,3446.4,3446.2,0.05979485]
[1719915371013,3.83944732,3446.3,3445.7,5.16096]
[1719915371214,0.824,3446.1,3445.7,5.16096]
[1719915374520,0.824,3446.1,3445.5,8.17867]
[1719915374722,0.824,3446.1,3445.5,5.27636]
[1719915375632,0.824,3446.1,3445.5,6.476642]
[1719915376405,0.824,3445.9,3445.8,2.90208]
[1719915378741,0.824,3445.9,3445.8,2.96207367]
[1719915380419,0.33466,3445.9,3445.8,2.96207367]
[1719915384328,0.33466,3445.9,3445.8,0.05999367]
[1719915384728,0.33466,3445.9,3445.6,2.90217]
[1719915384948,0.33466,3445.9,3445.8,0.06001607]
[1719915385157,0.33466,3445.9,3445.5,2.90227]
[1719915385324,0.33466,3445.9,3445.8,0.06001607]
[1719915385521,0.33466,3445.9,3445.5,2.90227]
[1719915385819,0.33466,3445.9,3445.6,2.90224]
[1719915386051,0.33466,3445.9,3445.7,0.06001607]
[1719915386248,2.4157,3446.0,3445.7,2.96216607]
[1719915388742,2.4157,3446.0,3445.7,2.96210607]
[1719915389143,2.4157,3446.0,3445.7,5.86419607]
[1719915389543,2.4157,3446.0,3445.8,2.90207]
[1719915389934,2.4157,3446.0,3445.9,0.06008051]
[1719915390580,0.824,3446.1,3445.9,0.06008051]
[1719915392347,2.4721,3446.2,3445.9,5.80388]
[1719915392554,2.4721,3446.2,3446.0,0.06008051]
[1719915393358,2.4721,3446.2,3446.0,2.96199051]
[1719915393939,9.7573,3446.5,3446.1,2.90181]
[1719915394129,0.824,3446.3,3446.1,2.90181]
[1719915394526,0.824,3446.3,3446.2,0.06008051]
[1719915396526,9.7573,3446.5,3446.2,0.06008051]
[1719915396761,7.41,3446.5,3446.2,2.96181051]
[1719915397768,0.824,3446.6,3446.2,2.96181051]
[1719915398147,2.3188,3446.8,3446.7,2.90132]
[1719915398148,3.01544732,3446.8,3446.7,2.90132]
[1719915398333,7.41,3447.0,3446.4,2.3859]
[1719915398334,7.41,3447.0,3446.8,2.90124]
[1719915398861,7.41,3447.0,3446.9,2.9611829]
[1719915408846,7.41,3447.0,3446.9,5.8623329]
[1719915409062,7.41,3447.0,3446.9,6.44856619]
[1719915409374,7.41,3447.0,3446.9,5.8023]
[1719915409562,7.41,3447.0,3446.9,5.85816269]
[1719915412898,7.41,3447.0,3446.9,6.69256269]
[1719915415173,7.41,3447.0,3446.9,5.85816269]
[1719915415356,7.41,3447.0,3446.9,6.89994596]
[1719915415695,0.824,3447.7,3447.3,2.90074]
[1719915416048,0.824,3447.7,3447.4,0.05563866]
[1719915417393,0.824,3447.7,3447.4,2.95634866]
[1719915417559,2.4502,3447.8,3447.5,2.90064]
[1719915418193,2.77762,3447.8,3447.6,0.05563866]
[1719915418589,2.77762,3447.8,3447.5,2.90064]
[1719915418774,2.77762,3447.8,3447.7,0.05563866]
[1719915418975,3.60162,3447.8,3447.5,2.90064]
[1719915419373,3.60162,3447.8,3447.6,0.05563866]
[1719915421207,2.77762,3447.8,3447.6,0.05563866]
[1719915421422,2.4502,3447.8,3447.6,2.95618866]
[1719915424027,2.3132,3448.0,3447.6,2.95618866]
[1719915428345,2.3132,3448.0,3447.7,2.90042]
[1719915428548,2.3132,3448.0,3447.7,2.95398011]
[1719915429912,2.3132,3448.0,3447.9,2.90031]
[1719915430102,7.41,3448.2,3448.0,2.90018]
[1719915430306,5.30204732,3448.3,3448.0,2.90018]
[1719915430507,5.30204732,3448.3,3448.2,2.90006]
[1719915430708,5.30204732,3448.3,3448.2,2.95362011]
[1719915431838,2.2866,3448.3,3448.2,2.95362011]
[1719915435359,2.3827,3448.5,3448.2,2.95362011]
[1719915436234,2.3827,3448.5,3448.2,5.85361011]
[1719915437551,2.3827,3448.5,3448.2,2.95355011]
[1719915438449,7.41,3448.8,3448.4,2.89989]
[1719915438450,9.8276,3448.8,3448.4,2.89989]
[1719915438638,12.32436,3448.8,3448.4,2.89989]
[1719915439547,2.4176,3448.8,3448.4,2.89989]
[1719915439751,1.92826,3448.8,3448.4,2.89989]
[1719915440342,1.92826,3448.8,3448.5,0.05156242]
[1719915440755,0.824,3449.0,3448.6,2.89967]
[1719915440957,0.824,3449.0,3448.7,0.05137493]
[1719915441842,7.41,3449.7,3449.4,2.89899]
[1719915442149,12.14,3450.2,3449.5,2.89894]
[1719915442150,0.824,3450.1,3449.5,2.89894]
[1719915442728,2.4176,3450.0,3449.5,2.89894]
[1719915443427,3.2416,3450.0,3449.5,2.89894]
[1719915443624,2.27916,3449.9,3449.5,2.89894]
[1719915445627,3.2416,3450.0,3449.5,2.89894]
[1719915445836,3.2416,3450.0,3449.6,0.05105329]
[1719915446036,2.4176,3450.0,3449.5,2.89894]
[1719915446340,2.4176,3450.0,3449.6,2.9499249]
[1719915446558,0.98276,3449.9,3449.6,2.9499249]
[1719915454352,0.98276,3449.9,3449.6,0.0510449]
[1719915454598,0.98276,3449.9,3449.5,2.89896]
[1719915454760,0.98276,3449.9,3449.7,0.04724174]
[1719915455082,0.98276,3449.9,3449.5,2.89896]
[1719915455281,0.98276,3449.9,3449.8,0.04724174]
[1719915455464,0.98276,3449.9,3449.5,2.89896]
[1719915455665,0.340036,3449.8,3449.6,0.04724174]
[1719915458293,7.41,3450.2,3449.6,2.94604174]
[1719915458451,7.41,3450.2,3449.8,2.89867]
[1719915458782,7.41,3450.2,3449.9,2.94270992]
[1719915460987,2.3572,3450.4,3450.0,2.89853]
[1719915461311,2.59292,3450.4,3450.0,2.89853]
[1719915461602,2.59292,3450.4,3450.1,0.04407992]
[1719915463174,0.824,3450.7,3450.1,0.04407992]
[1719915463413,2.3398,3450.8,3450.1,0.04407992]
[1719915463414,2.3398,3450.8,3450.3,2.89829]
[1719915463695,7.41,3450.9,3450.3,3.72229]
[1719915463856,7.41,3450.9,3450.4,2.8982]
[1719915464058,7.41,3450.9,3450.5,2.89806]
[1719915466415,2.3398,3451.0,3450.6,0.04385074]
[1719915466617,2.65618,3451.0,3450.6,0.04385074]
[1719915466911,2.65618,3451.0,3450.5,2.89806]
[1719915467062,2.3398,3451.0,3450.5,3.72206]
[1719915467569,2.3398,3451.0,3450.6,0.04385074]
[1719915468403,2.3398,3451.0,3450.6,2.94188074]
[1719915469083,2.3398,3451.0,3450.7,2.89794]
[1719915469285,2.2666,3451.3,3450.8,2.89787]
[1719915469485,3.3076,3451.3,3450.8,2.89787]
[1719915469691,3.3076,3451.3,3450.9,0.04385074]
[1719915471794,3.3076,3451.3,3450.7,2.89791]
[1719915472099,3.3076,3451.3,3450.8,0.04385074]
[1719915472269,1.45416,3451.2,3450.8,0.04385074]
[1719915472916,1.45416,3451.2,3450.4,2.89817]
[1719915473113,1.45416,3451.2,3450.6,2.89799]
[1719915473337,0.824,3450.7,3450.5,0.04364114]
[1719915473633,0.824,3450.7,3449.8,4.22246]
[1719915473634,3.1953,3450.6,3449.8,2.89866]
[1719915475237,3.1953,3450.6,3449.6,7.12148]
[1719915475394,3.1953,3450.6,3449.3,3.0]
[1719915475395,0.824,3450.2,3449.4,2.89899]
[1719915476239,0.824,3450.2,3449.5,2.89896]
[1719915476988,5.26934,3450.6,3449.6,2.89888]
[1719915477331,0.824,3450.4,3449.5,0.824]
[1719915478226,0.824,3450.4,3449.4,2.89899]
[1719915478517,0.824,3450.4,3449.5,2.89897]
[1719915478727,2.3713,3450.6,3449.8,0.824]
[1719915478930,0.526932,3450.5,3449.8,0.824]
[1719915479222,0.526932,3450.5,3449.6,3.72287]
[1719915481708,2.3713,3450.6,3449.8,2.89868]
[1719915481912,3.1953,3450.6,3449.8,2.89868]
[1719915482081,3.1953,3450.6,3449.8,5.79732]
[1719915482281,3.1953,3450.6,3449.8,2.89864]
[1719915482814,3.1953,3450.6,3449.9,2.89861]
[1719915483114,3.1953,3450.6,3449.7,2.89874]
[1719915483302,0.824,3450.4,3449.7,2.89879]
[1719915483815,0.824,3450.4,3449.8,0.0387886]
[1719915484115,0.609322,3450.5,3449.8,2.9374786]
[1719915485410,3.1953,3450.6,3449.8,2.9374786]
[1719915486427,0.824,3450.4,3449.8,0.0387886]
[1719915486726,0.824,3450.4,3449.4,2.89898]
[1719915487225,0.824,3450.4,3449.5,2.93794022]
[1719915488211,0.824,3450.2,3449.5,0.03897022]
[1719915488453,0.824,3450.0,3449.1,2.89928]
[1719915488624,0.612867,3450.1,3449.6,0.03897022]
[1719915488625,0.824,3449.8,3449.6,0.03897022]
[1719915488794,0.824,3449.8,3448.8,2.89953]
[1719915489122,2.4064,3449.9,3449.2,0.824]
[1719915489326,0.824,3449.6,3448.9,0.03767122]
[1719915489530,0.824,3449.6,3448.7,1.3238]
[1719915489735,0.824,3449.6,3449.0,0.03767122]
[1719915490035,0.824,3449.6,3449.1,0.03767122]
[1719915490243,0.824,3449.6,3448.7,3.404335]
[1719915490412,0.824,3449.6,3449.2,0.03767122]
[1719915490613,0.824,3449.6,3448.7,2.89959]
[1719915490833,1.726784,3449.6,3448.8,0.03641551]
[1719915491033,0.824,3449.4,3448.8,0.03641551]
[1719915491204,0.824,3449.4,3448.5,2.89973]
[1719915491411,0.824,3449.4,3448.6,0.0351598]
[1719915492724,0.824,3449.4,3448.6,2.9348798]
[1719915493038,0.824,3449.4,3448.6,0.0351598]
[1719915493544,6.07667,3449.5,3448.6,0.0351598]
[1719915495852,6.07667,3449.5,3448.6,0.02581959]
[1719915496371,6.974217,3449.5,3448.6,0.02581959]
[1719915496644,3.251247,3449.5,3448.6,2.92553959]
[1719915496876,2.3537,3449.5,3448.7,0.824]
[1719915497092,3.1777,3449.5,3448.6,2.92553959]
[1719915497211,3.1777,3449.5,3448.8,0.02608239]
[1719915497408,3.1777,3449.5,3448.6,2.89972]
[1719915497671,2.3537,3449.5,3448.7,1.35483439]
[1719915499246,2.3537,3449.5,3448.7,4.25447439]
[1719915500217,2.3537,3449.5,3448.8,2.8995]
[1719915500614,2.3537,3449.5,3448.9,0.02608239]
[1719915502514,2.3537,3449.5,3448.9,2.92553239]
[1719915502715,2.3537,3449.5,3449.0,0.71537844]
[1719915503492,2.3537,3449.5,3449.1,0.02608239]
[1719915503961,2.3537,3449.5,3449.0,0.71537844]
[1719915504411,3.1777,3449.5,3449.1,0.02608239]
[1719915504612,3.1777,3449.5,3448.7,2.89964]
[1719915505046,3.1777,3449.5,3448.8,0.02608239]
[1719915505715,3.1777,3449.5,3448.6,2.89966]
[1719915505916,3.1777,3449.5,3448.9,0.02608239]
[1719915506217,4.07523,3449.5,3449.0,0.02608239]
[1719915506443,4.07523,3449.5,3448.6,2.89966]
[1719915506748,4.07523,3449.5,3448.7,0.02608239]
[1719915507811,6.9742,3449.5,3448.7,0.02608239]
[1719915508442,0.824,3449.3,3448.7,0.02608239]
[1719915508683,0.824,3449.3,3448.5,3.0]
[1719915508859,0.824,3449.3,3448.8,0.02608239]
[1719915509385,0.824,3449.3,3448.5,5.89978]
[1719915509585,0.824,3449.3,3448.9,0.02608239]
[1719915509772,0.824,3449.3,3448.5,5.89978]
[1719915510388,0.824,3449.3,3448.6,0.02608519]
[1719915510892,0.824,3449.3,3448.5,5.89978]
[1719915511051,0.824,3449.3,3448.5,6.99454]
[1719915512563,2.3281,3448.8,3448.0,2.90017]
[1719915512889,2.3281,3448.8,3448.0,3.72417]
[1719915513051,2.3281,3448.8,3448.0,3.694991]
[1719915513257,2.3281,3448.8,3448.1,2.90012]
[1719915521717,2.3281,3448.8,3448.1,3.72412]
[1719915523328,2.3281,3448.8,3448.1,6.62419]
[1719915523613,2.3281,3448.8,3448.2,2.90004]
[1719915523809,2.3281,3448.8,3448.3,0.7418931]
[1719915529740,2.3281,3448.8,3448.2,2.90004]
[1719915531881,2.3281,3448.8,3448.3,2.89997]
[1719915534009,2.3281,3448.8,3448.3,5.79989]
[1719915535256,2.3281,3448.8,3448.4,2.89988]
[1719915538221,2.3281,3448.8,3448.4,3.72388]
[1719915538411,2.3281,3448.8,3448.5,0.66238]
[1719915539264,2.3281,3448.8,3448.4,2.89988]
[1719915543170,2.3281,3448.8,3448.5,2.8998]
[1719915545159,1.83876,3448.8,3448.5,2.8998]
[1719915551591,1.83876,3448.8,3448.5,5.79952]
[1719915551767,2.2596,3449.0,3448.7,2.89964]
[1719915553599,2.2596,3449.0,3448.8,2.89955]
[1719915557588,2.2596,3449.0,3448.7,2.89957]
[1719915558385,2.2596,3449.0,3448.4,2.89989]
[1719915558386,2.87016757,3449.0,3448.4,2.89989]
[1719915558590,5.37157572,3449.0,3448.4,2.89989]
[1719915558904,2.3495,3448.9,3448.4,2.89989]
[1719915559777,2.51954001,3448.7,3448.4,2.89989]
[1719915564015,1.9093389,3448.7,3448.6,5.79944]
[1719915564191,3.02207572,3449.7,3449.3,2.89907]
[1719915564394,3.02207572,3449.8,3449.4,0.824]
[1719915564591,3.02207572,3449.9,3449.4,3.72304]
[1719915564917,2.3495,3450.1,3449.5,2.89895]
[1719915565117,0.42556863,3450.0,3449.5,2.89895]
[1719915565687,0.42556863,3450.0,3449.6,2.89885]
[1719915566683,0.42556863,3450.0,3449.7,2.89877]
[1719915568302,0.42556863,3450.0,3449.8,2.8987]
[1719915568824,2.3495,3450.1,3449.8,2.8987]
[1719915571327,2.3495,3450.1,3449.9,2.89862]
[1719915573191,1.86016,3450.1,3450.0,2.89855]
[1719915573421,7.41,3450.7,3449.8,0.824]
[1719915573625,8.5182313,3450.7,3450.3,2.89828]
[1719915574148,9.3422313,3450.7,3450.3,2.89828]
[1719915576529,2.4039,3450.6,3450.3,2.89828]
[1719915578095,0.824,3450.5,3450.1,2.89839]
[1719915578295,2.497,3450.4,3450.1,5.79679]
[1719915578625,2.497,3450.4,3450.1,2.89843]
[1719915578828,2.497,3450.4,3450.1,2.8984]
[1719915580743,2.497,3450.4,3449.9,2.8986]
[1719915580906,2.497,3450.2,3449.9,2.8986]
[1719915587138,2.497,3450.2,3449.7,2.89873]
[1719915587713,2.497,3450.2,3449.8,2.8987]
[1719915595655,2.497,3450.2,3449.8,5.79735]
[1719915595945,2.497,3450.2,3449.8,2.89865]
[1719915596450,2.497,3450.2,3449.9,2.89862]
[1719915597848,2.497,3450.2,3449.8,2.89865]
[1719915599324,2.7467,3450.2,3449.6,5.79766]
[1719915599524,2.7467,3450.2,3449.7,2.89878]
[1719915601024,2.7467,3450.2,3449.6,2.89881]
[1719915601641,2.7467,3450.2,3449.2,2.89916]
[1719915601847,0.824,3449.7,3449.2,2.89915]
[1719915602046,0.824,3449.7,3449.3,2.89911]
[1719915602418,2.3916,3449.8,3449.3,2.89911]
[1719915602650,2.3916,3449.8,3449.4,2.89905]
[1719915607948,2.3916,3449.8,3449.5,2.89896]
[1719915609490,2.3916,3449.8,3449.5,5.79786]
[1719915609986,2.3916,3449.8,3449.6,2.89888]
[1719915611405,2.3916,3449.8,3449.1,2.3025]
[1719915611406,2.3916,3449.8,3449.3,2.8991]